[Event "3rd Sinquefield Cup 2015"]
[Site "Saint Louis"]
[Date "2015.08.24"]
[Round "2"]
[White "Caruana, Fabiano"]
[Black "Carlsen, Magnus"]
[Result "0-1"]
[ECO "C84"]
[WhiteElo "2808"]
[BlackElo "2853"]
[Annotator "Ramirez Alvarez,Alejandro"]
[PlyCount "80"]
[EventDate "2015.??.??"]
[EventCountry "USA"]
[TimeControl "40/7200:3600+30"]

1. e4 {[%emt 0:00:04]} e5 {[%emt 0:00:07]} 2. Nf3 {[%emt 0:00:05]} Nc6 {[%emt
0:00:05]} 3. Bb5 {[%emt 0:00:03]} a6 {[%emt 0:00:06] No Berlin this time,
Carlsen goes back to the more traditional Spanish channels.} 4. Ba4 {[%emt 0:
00:04]} Nf6 {[%emt 0:00:06]} 5. O-O {[%emt 0:00:06]} b5 {[%emt 0:00:18]} 6. Bb3
{[%emt 0:00:06]} Bb7 {[%emt 0:00:06]} 7. d3 {[%emt 0:01:15]} Be7 {[%emt 0:00:
09] An Archangel with Be7} 8. Nc3 {[%emt 0:02:22]} O-O {[%emt 0:01:01]} 9. a3 {
[%emt 0:01:01]} d6 {[%emt 0:16:21]} 10. Re1 {[%emt 0:09:39]} Qd7 {[%emt 0:00:
35]} 11. Ne2 {[%emt 0:05:12]} Nd8 {[%emt 0:06:15]} 12. Ng3 {[%emt 0:01:06]} Ne6
{[%emt 0:00:32]} 13. Ba2 {[%emt 0:29:44] Strangely played after a 30 minute
think, and a novelty. The position has been reached a few times, and most
grandmasters preferred 13.c3.} Rfe8 {[%emt 0:08:03]} 14. Ng5 {[%emt 0:06:30]}
d5 $5 {[%emt 0:16:04] The d5 break always has some drawbacks in the Spanish.
Usually, it is the e5 pawn that suffers. It lacks protection and the e1-rook
is now attacking it. On the other hand, Carlsen gets more space and the bishop
on a2 loses some of its influence on f7.} 15. Nxe6 {[%emt 0:08:59]} Qxe6 {
[%emt 0:00:15]} 16. Bg5 {[%emt 0:07:46]} h6 {[%emt 0:04:17]} 17. Bxf6 {[%emt 0:
01:23]} Bxf6 {[%emt 0:01:22]} 18. Qf3 {[%emt 0:05:51] taking advantage of the
pin on the d5 pawn. However Black is solid.} c6 {[%emt 0:03:08] keeping the
tension} (18... dxe4 19. dxe4 {simply activates the bishop on a2.} Qb6 20. Nf5
$14) 19. c4 {[%emt 0:06:36]} Rad8 {[%emt 0:03:30]} 20. cxd5 {[%emt 0:01:05]}
cxd5 {[%emt 0:00:02]} 21. Nf5 {[%emt 0:00:30] White's knight is annoying on f5,
but Black's position is holding together.} Bg5 $1 {[%emt 0:22:27]} 22. h4 {
[%emt 0:01:00]} Bd2 {[%emt 0:03:54]} (22... Bf4 {is also possible.} 23. g3 dxe4
24. Qg4 (24. dxe4 $2 Qxf5 $17) 24... Qf6 25. gxf4 exd3 {gets crazy, but
computers like Black a bit.} 26. fxe5 $2 d2 $19 {was something Carlsen missed.}
) 23. Re2 {[%emt 0:04:26]} dxe4 {[%emt 0:14:28]} 24. dxe4 {[%emt 0:05:18]} Qf6
{[%emt 0:00:11]} 25. g3 {[%emt 0:09:41]} Kf8 {[%emt 0:01:45] Magnus was
critical of this move, but maybe it was not so bad.} 26. h5 {[%emt 0:05:10]}
Bg5 {[%emt 0:04:20]} 27. a4 {[%emt 0:01:14] Played with under 5 minutes on the
clock.} b4 {[%emt 0:01:13]} (27... bxa4 $1) 28. a5 {[%emt 0:02:02] After this
Caruana was down to only seconds.} Kg8 {[%emt 0:04:23]} 29. Bc4 {[%emt 0:00:09]
} Rd7 $6 {[%emt 0:00:51]} (29... Kh8 $1) 30. Ra4 $1 {[%emt 0:00:28]} Kh8 {
[%emt 0:02:15]} 31. Rxb4 {[%emt 0:00:08]} g6 {[%emt 0:00:07] What a crazy
position! Specially since they were on bullet mode now: both players under
three minutes.} 32. hxg6 {[%emt 0:00:01]} fxg6 {[%emt 0:00:05]} 33. Qb3 {[%emt
0:00:41] Forced, but Caruana took way too long on making this move... 41
seconds!} Bc6 {[%emt 0:00:06]} 34. Ne3 {[%emt 0:00:03]} Bxe4 {[%emt 0:00:11]}
35. Bd5 {[%emt 0:00:01]} Bxd5 {[%emt 0:01:03]} (35... Qf3 36. Rxe4 $1 (36. Bxe4
Qxe2 37. Rb8 {Carlsen thought this was "at least a draw" but actually Black is
winning after} Rxb8 38. Qxb8+ Kh7 $1 39. Bd5 Rg7 $1 $18) 36... Qxe2 37. Nc4 Qh5
38. g4 $1 Qh4 39. Nxe5 $1 {with a strong initiative.}) 36. Nxd5 {[%emt 0:00:01]
} Qc6 {[%emt 0:00:01]} 37. Nc3 {[%emt 0:00:02]} Qf3 {[%emt 0:00:06]} 38. Qc2 {
[%emt 0:00:03]} Red8 {[%emt 0:00:04]} 39. Rbe4 {[%emt 0:00:01]} (39. Qe4 $1 $16
Rd1+ $2 40. Nxd1 Rxd1+ 41. Re1 {doesn't work.}) 39... Rd2 {[%emt 0:00:04]} (
39... Bf4 $1 {but who would see this with seconds left?}) 40. Rxd2 $4 {[%emt 0:
00:00] Horrible! But Caruana only had a couple of seconds to play.} (40. Qb3
Rd1+ $1 41. Qxd1 Rxd1+ 42. Nxd1 h5 {gives Black enough compensation.}) 40...
Rxd2 {[%emt 0:00:00] Now it is clear that Black is winning. f2 is hanging as
well as the queen.} 0-1

[Event "3rd Sinquefield Cup 2015"]
[Site "Saint Louis"]
[Date "2015.08.24"]
[Round "2"]
[White "Topalov, Veselin"]
[Black "Nakamura, Hikaru"]
[Result "1-0"]
[ECO "C65"]
[WhiteElo "2816"]
[BlackElo "2814"]
[Annotator "Ramirez Alvarez,Alejandro"]
[PlyCount "145"]
[EventDate "2015.??.??"]
[EventCountry "USA"]
[TimeControl "40/7200:3600+30"]

1. e4 {[%emt 0:00:05]} e5 {[%emt 0:00:07]} 2. Nf3 {[%emt 0:00:07]} Nc6 {[%emt
0:00:04]} 3. Bb5 {[%emt 0:00:07]} Nf6 {[%emt 0:00:06]} 4. d3 {[%emt 0:00:14]}
Bc5 5. Nbd2 d6 {[%emt 0:03:28]} 6. O-O {[%emt 0:03:31]} O-O {[%emt 0:01:11]} 7.
c3 {[%emt 0:00:06]} Ne7 {[%emt 0:01:32]} 8. d4 {[%emt 0:04:02]} exd4 {[%emt 0:
00:21]} 9. cxd4 {[%emt 0:00:04]} Bb6 {[%emt 0:00:05]} 10. Re1 {[%emt 0:01:32]}
Ng6 {[%emt 0:04:43]} 11. h3 {[%emt 0:03:00]} c6 {[%emt 0:03:31]} 12. Bd3 {
[%emt 0:11:36] Already not a theoretical position. However the ideas heavily
resemble the Italian game.} Nh5 {[%emt 0:15:59]} (12... d5 13. e5 Nf4 14. Bc2
N6h5 {looks good for White because after} 15. Nf1 {it's hard to prevent Ng3
with problems:} f6 16. Ng3 fxe5 17. Nxh5 $1 $16) 13. Nc4 {[%emt 0:04:31]} Bc7 {
[%emt 0:00:12]} 14. d5 $5 {[%emt 0:03:20]} Nhf4 {[%emt 0:03:24]} 15. Bf1 {
[%emt 0:02:41]} f5 $5 {[%emt 0:04:13] Uncompromising play. Black hits the
center strong, but Topalov comes up with an excellent decision.} 16. e5 $1 {
[%emt 0:04:19] An excellent pawn sacrifice. He receives the pair of  bishops
and specially an unopposed dark squared monster.} Nxd5 {[%emt 0:01:26]} 17.
exd6 {[%emt 0:09:23]} Bxd6 {[%emt 0:00:19]} 18. Nxd6 {[%emt 0:00:08]} Qxd6 {
[%emt 0:00:03]} 19. b3 {[%emt 0:00:23] The bishop on b2 will be targetting the
g7 pawn and the king feels very uncomfortable.} Bd7 $6 {[%emt 0:16:39]} (19...
Be6 {directly was much, much better.} 20. Bb2 Rfe8 21. Qd4 Qc7 22. Ng5 Ngf4 $5
{trying to consolidate, but White retains real initiative.}) 20. Bb2 {[%emt 0:
00:33]} Rfe8 {[%emt 0:00:48]} 21. Qd4 {[%emt 0:01:07]} Qf6 {[%emt 0:00:22]} 22.
Qd2 {[%emt 0:00:14]} Qd6 {[%emt 0:00:07]} 23. Bc4 {[%emt 0:05:16]} h6 {[%emt 0:
06:20]} 24. Qd4 {[%emt 0:04:56] Already Black's position is very bad. Nakamura
returns his material, but then the pair of bishops is very strong.} Qf6 {[%emt
0:01:16]} 25. Qxf6 {[%emt 0:04:31]} gxf6 {[%emt 0:00:04]} 26. Bxf6 {[%emt 0:00:
38]} Rxe1+ {[%emt 0:07:55]} 27. Rxe1 {[%emt 0:00:32]} Re8 {[%emt 0:00:04]} 28.
Rd1 {[%emt 0:05:37]} Be6 {[%emt 0:05:39]} 29. Nd4 {[%emt 0:00:41]} Kf7 {[%emt
0:05:26]} 30. Nxe6 {[%emt 0:00:08]} Rxe6 {[%emt 0:02:09]} 31. Bd4 {[%emt 0:01:
40] The pair of bishops is very strong.} a6 {[%emt 0:00:05]} 32. Kf1 $6 {[%emt
0:07:27]} (32. g3 $1 {preventing Ngf4 was better.}) 32... Ngf4 {[%emt 0:03:41]}
33. b4 {[%emt 0:00:30]} Re4 {[%emt 0:03:01]} 34. f3 {[%emt 0:03:48]} Re8 {
[%emt 0:00:03]} 35. g3 {[%emt 0:10:01]} Ne6 {[%emt 0:00:32]} (35... Nxh3 36. f4
{traps the knight, this doesn't look playable.}) 36. Bf2 {[%emt 0:00:39]} Rd8 {
[%emt 0:03:50]} 37. Re1 {[%emt 0:02:13]} f4 $2 {[%emt 0:01:10] A strange move.
This allows White easier play thanks to the possibility of moving forward on
the kingside with the pawns.} (37... Kf6 $14) 38. g4 {[%emt 0:02:01]} Ng5 {
[%emt 0:00:58]} 39. Kg2 {[%emt 0:01:16]} Re8 {[%emt 0:01:58]} 40. Rd1 {[%emt 0:
00:00]} Re5 {[%emt 0:00:00]} 41. Bd4 {[%emt 0:09:00]} Re8 {[%emt 0:01:27]} 42.
h4 {[%emt 0:04:02]} Ne6 {[%emt 0:00:30]} 43. Bf2 {[%emt 0:00:20]} Nec7 {[%emt
0:00:09]} 44. h5 {[%emt 0:06:34]} Kf6 {[%emt 0:07:15]} 45. Kh3 {[%emt 0:00:54]}
b5 {[%emt 0:08:15]} 46. Bd4+ {[%emt 0:11:08]} Kg5 {[%emt 0:04:27]
counterintuitive! The king is almost mated in this position, but Nakamura's
position was already bad.} 47. Bxd5 $6 {[%emt 0:07:26]} (47. Bb3 $1 {Was even
cleaner. Here Black basically gets mated:} Nxb4 48. Bf2 $18) 47... Nxd5 {[%emt
0:00:50]} 48. Rc1 {[%emt 0:00:06]} Re6 {[%emt 0:00:04]} 49. Rc5 {[%emt 0:00:06]
} Rd6 {[%emt 0:00:01]} 50. Bg7 {[%emt 0:01:22]} Re6 {[%emt 0:01:58]} 51. Bd4 {
[%emt 0:03:43]} Rd6 {[%emt 0:00:37]} 52. a3 $1 {[%emt 0:04:58]} Re6 {[%emt 0:
00:05]} 53. Rc1 {[%emt 0:01:59] Black is in zugzwang.} Ne7 {[%emt 0:04:43]} ({
Analysis:} 53... Rd6 54. Re1 {gets mated.} Ne3 55. Rxe3 $1 fxe3 56. Be5 Rf6 57.
Kg3 $18) 54. Bf2 {[%emt 0:05:00]} Kf6 {[%emt 0:00:44]} 55. Bh4+ {[%emt 0:00:05]
} Kf7 {[%emt 0:00:12]} 56. g5 {[%emt 0:00:41]} hxg5 {[%emt 0:06:45]} 57. Bxg5 {
[%emt 0:00:13] White's passed pawn on the kingside gives him a decisive
advantage. Topalov converts in Capablanca style.} Nd5 {[%emt 0:00:15]} 58. Kg4
{[%emt 0:01:00]} Kg7 {[%emt 0:00:26]} 59. Bxf4 {[%emt 0:01:19]} Nxf4 {[%emt 0:
04:21]} 60. Kxf4 {[%emt 0:00:08] interestingly this endgame without all the
pawns on the queenside is probably drawn or close to drawn, but because of
potential queen trades I don't think Black has any hope here.} Rd6 {[%emt 0:00:
26]} 61. Rc3 $1 {[%emt 0:00:29]} Kf6 {[%emt 0:04:24]} 62. Kg4 {[%emt 0:01:08]}
a5 {[%emt 0:02:54] desperation.} 63. bxa5 {[%emt 0:00:24]} Rd4+ {[%emt 0:00:01]
} 64. f4 {[%emt 0:00:14]} Ra4 {[%emt 0:00:01]} 65. Rxc6+ {[%emt 0:02:19]} Kg7 {
[%emt 0:00:09]} 66. a6 {[%emt 0:01:52]} Rxa3 {[%emt 0:00:03]} 67. f5 {[%emt 0:
00:55]} b4 {[%emt 0:01:24]} 68. f6+ {[%emt 0:00:21]} Kf7 {[%emt 0:00:24]} 69.
h6 {[%emt 0:02:42] Too many passed pawns.} Kg6 {[%emt 0:00:26]} 70. Rc8 {[%emt
0:00:11]} b3 {[%emt 0:04:41]} 71. Rg8+ {[%emt 0:01:30]} Kf7 {[%emt 0:00:42]}
72. h7 {[%emt 0:00:21]} Ra4+ {[%emt 0:00:18]} 73. Kf3 {[%emt 0:00:36]} 1-0

[Event "3rd Sinquefield Cup 2015"]
[Site "Saint Louis"]
[Date "2015.08.24"]
[Round "2"]
[White "Grischuk, Alexander"]
[Black "Anand, Viswanathan"]
[Result "1-0"]
[ECO "D00"]
[WhiteElo "2771"]
[BlackElo "2816"]
[Annotator "Ramirez Alvarez,Alejandro"]
[PlyCount "69"]
[EventDate "2015.??.??"]
[EventCountry "USA"]
[TimeControl "40/7200:3600+30"]

1. d4 {[%emt 0:00:12]} Nf6 {[%emt 0:00:06]} 2. Bf4 $5 {[%emt 0:00:12] Some
kind of London system, completing bypassing theory. This is usually done after
Nf3, but Grischuk skips this move for quite a while. Grischuk called it the
"correct bishop opening".} d5 {[%emt 0:01:23]} 3. e3 {[%emt 0:00:35]} c5 $5 {
[%emt 0:00:38] Played quickly} 4. dxc5 {[%emt 0:02:05]} Nc6 {[%emt 0:00:30]} 5.
Bb5 {[%emt 0:00:08]} Qa5+ {[%emt 0:05:31]} 6. Nc3 {[%emt 0:00:15]} a6 {[%emt 0:
00:13]} 7. Bxc6+ {[%emt 0:00:17]} bxc6 {[%emt 0:00:07]} 8. Nf3 {[%emt 0:00:24]}
(8. Qd4 {can get crazy and might be the critical move. For example:} e6 9. b4
Qa3 10. Nge2 a5 11. b5 $13) 8... e6 {[%emt 0:04:51]} 9. O-O {[%emt 0:15:05]}
Bd7 $6 {[%emt 0:04:33] This move was very strange. The development of the
bishop to this square doesn't make much sense.} 10. a3 {[%emt 0:19:45]} (10. e4
$5 {was another attempt at creating complications, but Grischuk's approach is
also good.} dxe4 $6 11. Ne5 $16) 10... Qxc5 {[%emt 0:00:48] forced} 11. Na4 {
[%emt 0:00:37]} Qa7 {[%emt 0:02:49]} 12. c4 {[%emt 0:01:48] A typical break in
this structure. Black is behind in development. He definitely would wish that
his bishop on f8 was on e7 rather than the one on c8 going to d7.} Be7 {[%emt
0:02:01]} 13. Rc1 {[%emt 0:07:46]} (13. b4 $5) 13... Rc8 {[%emt 0:03:05]} (
13... O-O 14. cxd5 Nxd5 $14 {is worse for Black, but perhaps had to be played.}
) 14. cxd5 {[%emt 0:21:36]} (14. b4 $16) 14... cxd5 {[%emt 0:05:07]} 15. Rxc8+
{[%emt 0:00:28]} Bxc8 {[%emt 0:00:09]} 16. Qd4 $1 {[%emt 0:00:03]} Qxd4 {[%emt
0:01:06]} 17. exd4 {[%emt 0:00:27]} Bd7 {[%emt 0:07:01]} 18. Nb6 {[%emt 0:19:
45] The endgame is unpleasant for Black. His activity is limited and White
will rule the c-file.} Bd8 {[%emt 0:16:49]} (18... Bb5 19. Rc1 Nd7 20. Rc8+ Bd8
{is not human, but perhaps it was the best chance to equalize.}) 19. Nxd7 {
[%emt 0:01:02]} Nxd7 {[%emt 0:00:44]} 20. Rc1 {[%emt 0:00:14]} f6 $2 {[%emt 0:
00:37] This move is hard to understand. Black will simply lose a pawn here.} (
20... a5 21. Rc6 O-O 22. b4 axb4 23. axb4 Re8 {prepares an e5 break.
Uncomfortable, but not lost.}) 21. Rc6 {[%emt 0:03:48]} Kf7 {[%emt 0:01:24]}
22. Rxa6 {[%emt 0:03:49]} Bb6 {[%emt 0:00:31]} 23. Bd2 {[%emt 0:02:28]} g5 {
[%emt 0:04:22]} 24. h3 {[%emt 0:05:33]} Rb8 {[%emt 0:00:31]} 25. Bb4 {[%emt 0:
02:45] Grischuk was already down on time, and Anand tried to take advantage of
it by playing quickly, however this backfired.} Rb7 {[%emt 0:00:30]} 26. Ra8 {
[%emt 0:00:57]} Nb8 {[%emt 0:00:18]} 27. Kf1 {[%emt 0:00:39]} Nc6 {[%emt 0:06:
28]} 28. Bc3 {[%emt 0:00:01]} e5 $5 {[%emt 0:00:17] Going for complications,
but this doesn't work.} (28... h5 29. g4 hxg4 30. hxg4 e5 {was a slightly
better version, but still bad for Black.}) 29. dxe5 {[%emt 0:00:31]} d4 {[%emt
0:00:10]} 30. Bb4 $1 {[%emt 0:01:06]} Nxe5 {[%emt 0:01:05]} 31. Nxe5+ $1 {
[%emt 0:01:57] A relatively long think that was very accurate.} fxe5 {[%emt 0:
00:07]} 32. Ke2 {[%emt 0:00:12] Despite the low amount of time that Grischuk
had, he played very precisely.} e4 {[%emt 0:03:21]} 33. f3 {[%emt 0:00:01]} d3+
{[%emt 0:01:46]} (33... e3 34. Kd3 {doesn't look promising for Black: his two
passed pawns are blockaded and his pieces are happy. However this was a better
try.}) 34. Kd2 {[%emt 0:00:07]} exf3 {[%emt 0:00:33]} 35. Rf8+ $1 {[%emt 0:00:
19] White will pick up the f3 pawn and then the d3 pawn. It's done.} 1-0

[Event "3rd Sinquefield Cup 2015"]
[Site "Saint Louis"]
[Date "2015.08.24"]
[Round "2"]
[White "Vachier-Lagrave, Maxime"]
[Black "Aronian, Levon"]
[Result "1/2-1/2"]
[ECO "D38"]
[WhiteElo "2731"]
[BlackElo "2765"]
[Annotator "Ramirez Alvarez,Alejandro"]
[PlyCount "63"]
[EventDate "2015.??.??"]
[EventCountry "USA"]
[TimeControl "40/7200:3600+30"]

1. d4 {[%emt 0:00:03]} Nf6 {[%emt 0:00:05]} 2. c4 {[%emt 0:00:03]} e6 {[%emt 0:
00:04]} 3. Nf3 {[%emt 0:00:04]} d5 {[%emt 0:00:05]} 4. Nc3 {[%emt 0:00:03]} Bb4
{[%emt 0:00:05]} 5. Bg5 {[%emt 0:00:05]} h6 {[%emt 0:00:04]} 6. Bxf6 {[%emt 0:
00:03]} Qxf6 {[%emt 0:00:04]} 7. Qa4+ {[%emt 0:00:18]} Nc6 {[%emt 0:00:06]} 8.
e3 {[%emt 0:00:03]} O-O {[%emt 0:00:06]} 9. Be2 {[%emt 0:00:10]} dxc4 {[%emt 0:
00:14]} 10. O-O {[%emt 0:00:19]} Bd7 {[%emt 0:00:03]} 11. Bxc4 {[%emt 0:00:19]}
Bxc3 {[%emt 0:00:05] After 11...Bd6 stopped giving Black optimal positions,
people have been looking at this capture on c3 to even things out. Aronian
used it against Topalov in Norway this year.} 12. bxc3 {[%emt 0:00:06]} Rfd8 {
[%emt 0:00:04]} 13. Be2 {[%emt 0:01:35]} Be8 {[%emt 0:00:08]} 14. Qa3 {[%emt 0:
02:23]} Qe7 {[%emt 0:00:09]} 15. Qb2 {[%emt 0:00:07]} b6 {[%emt 0:00:05]
Played instantly. Aronian's improvement over 15...Na5, which he played against
Topalov.} (15... Na5 16. Qb4 Qxb4 17. cxb4 Nc6 18. Rab1 $14 {Topalov-Aronoian,
Norway 2015.}) 16. Nd2 {[%emt 0:03:53] Perhaps this is not the most
challenging, but I'm not sure what to suggest instead.} Na5 {[%emt 0:03:24]}
17. Nb3 {[%emt 0:02:05]} (17. Qb4 c5 {doesn't look anywhere near as appealing
as it did in the mentioned game.}) 17... Nxb3 {[%emt 0:00:47]} 18. axb3 {[%emt
0:00:09]} a5 {[%emt 0:04:04]} 19. b4 {[%emt 0:12:00]} (19. Bf3 Rab8 20. c4 {is
given as slightly better by the computers, but after} c5 {the position looks
pretty equal to me.}) 19... axb4 {[%emt 0:05:29]} (19... Bc6 20. bxa5 bxa5 $11)
20. Qxb4 {[%emt 0:03:18]} (20. cxb4 {was perhaps a bit better, but still Black
should be ok.}) 20... Kf8 {[%emt 0:02:12]} 21. Bf3 {[%emt 0:10:45]} Qxb4 {
[%emt 0:00:11]} 22. cxb4 {[%emt 0:00:08]} Rxa1 {[%emt 0:00:02]} 23. Rxa1 {
[%emt 0:00:10]} Ke7 {[%emt 0:00:08]} 24. Kf1 {[%emt 0:03:09]} Kd6 {[%emt 0:00:
06]} 25. Ke2 {[%emt 0:04:46] There is no reason to believe either side is
better. Even making a miniscule amount of progress looks impossible.} Bb5+ {
[%emt 0:00:53]} 26. Kd2 {[%emt 0:01:45]} e5 {[%emt 0:00:31]} 27. dxe5+ {[%emt
0:00:54]} Kxe5+ {[%emt 0:00:04]} 28. Kc3 {[%emt 0:00:10]} Rd3+ {[%emt 0:02:41]}
29. Kc2 {[%emt 0:00:09]} Rd8 {[%emt 0:00:06]} 30. Kc3 {[%emt 0:01:18]} Rd3+ {
[%emt 0:00:06]} 31. Kc2 {[%emt 0:00:05]} Rd8 {[%emt 0:00:05]} 32. Kc3 {[%emt 0:
00:04]} 1/2-1/2

[Event "3rd Sinquefield Cup 2015"]
[Site "Saint Louis"]
[Date "2015.08.24"]
[Round "2"]
[White "Giri, Anish"]
[Black "So, Wesley"]
[Result "1/2-1/2"]
[ECO "A35"]
[WhiteElo "2793"]
[BlackElo "2779"]
[Annotator "Ramirez Alvarez,Alejandro"]
[PlyCount "60"]
[EventDate "2015.??.??"]
[EventCountry "USA"]
[TimeControl "40/7200:3600+30"]

1. c4 {[%emt 0:00:03]} c5 {[%emt 0:00:07]} 2. Nf3 {[%emt 0:00:51]} Nc6 {[%emt
0:00:04]} 3. Nc3 {[%emt 0:00:34]} e5 {[%emt 0:00:04]} 4. e3 {[%emt 0:00:28]} f5
{[%emt 0:00:30]} 5. d4 {[%emt 0:01:03]} e4 {[%emt 0:00:05]} 6. d5 {[%emt 0:00:
11]} exf3 {[%emt 0:00:06]} 7. dxc6 {[%emt 0:00:04]} dxc6 {[%emt 0:00:06]} 8.
Qxd8+ {[%emt 0:01:25]} Kxd8 {[%emt 0:00:06]} 9. gxf3 {[%emt 0:00:22]} Nf6 {
[%emt 0:00:09]} 10. b3 {[%emt 0:03:43]} Bd6 {[%emt 0:00:08]} 11. Bb2 {[%emt 0:
01:02]} Ke7 {[%emt 0:00:12]} 12. O-O-O {[%emt 0:05:29]} (12. Bd3 {was
Timman-Edouard, 2011.}) 12... Be6 {[%emt 0:00:06]} 13. Bd3 {[%emt 0:00:36]}
Rhd8 {[%emt 0:07:42]} 14. Kc2 {[%emt 0:03:42]} Rd7 {[%emt 0:07:05] Technically
the novelty of the game. 14...g6 was played in Zvjaginsev-Bukavshin back in
2011, a game that White won.} 15. Ne2 {[%emt 0:04:38]} (15. e4 $5) 15... g6 {
[%emt 0:09:48]} 16. h3 {[%emt 0:15:47]} (16. Nf4 Bxf4 17. exf4 {looks drawish,
as pointed out by Giri.}) 16... Rad8 {[%emt 0:12:36]} 17. f4 {[%emt 0:01:16]}
Bc7 {[%emt 0:08:12]} 18. Ba3 {[%emt 0:01:57]} b6 {[%emt 0:00:36]} 19. Ng3 {
[%emt 0:01:39]} Kf7 {[%emt 0:01:02]} 20. Bb2 {[%emt 0:01:31] It doesn't seem
that White has made any progress. None of his last few moves created any real
threats and now that Black has completed his development he is very close to
being simply equal, perhaps by moving his pawns on the queenside.} a6 {[%emt 0:
06:17]} 21. Be5 {[%emt 0:04:29]} b5 {[%emt 0:06:40]} 22. Bxf5 {[%emt 0:11:20]
The tactics work out, but this doesn't give White any advantage.} gxf5 {[%emt
0:04:27]} (22... Bxf5+ 23. Nxf5 Bxe5 24. fxe5 gxf5 25. exf6 Kxf6 26. Rxd7 Rxd7
{is slightly better for White, but very close to a draw.}) 23. Bxc7 {[%emt 0:
00:05]} Rxd1 {[%emt 0:00:05]} 24. Rxd1 {[%emt 0:00:03]} Rxd1 {[%emt 0:00:04]}
25. Kxd1 {[%emt 0:00:04]} bxc4 {[%emt 0:00:04] The game at this point is
extremely drawish.} 26. bxc4 {[%emt 0:04:52]} Ne4 {[%emt 0:00:05]} 27. Nxe4 {
[%emt 0:05:37]} fxe4 {[%emt 0:00:04]} 28. h4 {[%emt 0:00:39]} Bxc4 {[%emt 0:00:
04]} 29. a3 {[%emt 0:00:04]} Ke6 {[%emt 0:00:58]} 30. f5+ {[%emt 0:00:57]} Kxf5
{With opposite colored bishops the game is basically dead.} 1/2-1/2